fUST/lending_fUST_20250715
["ID","MTS","AMOUNT","RATE_DAILY","PERIOD"]
[372129724,1752532251736,-460.0,0.00024109,3]
[372129725,1752532251746,-460.0,0.00024109,3]
[372129726,1752532251756,-460.0,0.00024109,3]
[372129727,1752532251765,-500.0,0.00024116,2]
[372129728,1752532251774,-1000.0,0.00024116,2]
[372129729,1752532251784,-501.23694856,0.00024116,2]
[372129730,1752532251795,-2154.0,0.00024121,2]
[372129731,1752532251805,-968.0,0.00024121,2]
[372129732,1752532251814,-407.0,0.00024121,2]
[372129733,1752532251824,-647.0,0.00024121,2]
[372129734,1752532251845,-168.0,0.00024125,2]
[372129735,1752532251862,-495.24451817,0.0002413,2]
[372129736,1752532251876,-2500.0,0.00024164,2]
[372129737,1752532251893,-151.0,0.000242,9]
[372129738,1752532251910,-1418.9076181,0.00024245,10]
[372129739,1752532251926,-495.24451817,0.00024251,2]
[372129740,1752532251943,-360.0,0.00024271,2]
[372129741,1752532251957,-450.0,0.00024273,2]
[372129742,1752532251972,-1705.78534178,0.00024283,2]
[372129743,1752532251995,-27689.1,0.000243,7]
[372129744,1752532252010,-495.24451817,0.00024372,2]
[372129745,1752532252022,-1418.9076181,0.00024383,11]
[372129746,1752532252036,-599.64,0.00024383,3]
[372129747,1752532252051,-460.0,0.00024383,3]
[372129748,1752532252067,-460.0,0.00024383,3]
[372129749,1752532252083,-849.55,0.00024383,3]
[372129750,1752532252100,-470.65,0.00024383,3]
[372129751,1752532252111,-460.0,0.00024383,3]
[372129752,1752532252124,-4225.54,0.00024383,3]
[372129753,1752532252140,-460.0,0.00024383,3]
[372129754,1752532252153,-2685.53,0.00024383,3]
[372129755,1752532252167,-530.52,0.00024383,3]
[372129756,1752532252183,-469.39,0.00024383,3]
[372129757,1752532252194,-6892.34,0.00024383,3]
[372129758,1752532252207,-460.0,0.00024383,3]
[372129759,1752532252220,-460.0,0.00024383,3]
[372129760,1752532252233,-460.0,0.00024383,3]
[372129761,1752532252247,-460.0,0.00024383,3]
[372129762,1752532252260,-460.0,0.00024383,3]
[372129763,1752532252273,-460.0,0.00024383,3]
[372129764,1752532252286,-3108.77,0.00024383,3]
[372129765,1752532252299,-196.86,0.00024383,3]
[372129766,1752532252312,-460.0,0.00024383,3]
[372129767,1752532252325,-2811.79,0.00024383,3]
[372129768,1752532252338,-4740.55,0.00024383,3]
[372129769,1752532252351,-401.53,0.00024383,3]
[372129770,1752532252363,-587.69,0.00024383,3]
[372129771,1752532252376,-1277.88,0.00024383,3]
[372129772,1752532252389,-1083.81,0.00024383,3]
[372129773,1752532252402,-460.0,0.00024383,3]
[372129774,1752532252416,-547.91,0.00024383,3]
[372129775,1752532252429,-561.49,0.00024383,3]
[372129776,1752532252442,-699.67,0.00024383,3]
[372129777,1752532252455,-460.0,0.00024383,3]
[372129778,1752532252468,-780.27,0.00024383,3]
[372129779,1752532252482,-460.0,0.00024383,3]
[372129780,1752532252497,-480.78,0.00024383,3]
[372129781,1752532252510,-460.0,0.00024383,3]
[372129782,1752532252523,-867.48,0.00024383,3]
[372129783,1752532252532,-462.27,0.00024383,3]
[372129784,1752532252542,-4080.15,0.00024383,3]
[372129785,1752532252552,-1633.31,0.00024383,3]
[372129786,1752532252562,-695.48,0.00024383,3]
[372129787,1752532252571,-2062.19,0.00024383,3]
[372129788,1752532252581,-694.43,0.00024383,3]
[372129789,1752532252591,-460.0,0.00024383,3]
[372129790,1752532252600,-551.7,0.00024383,3]
[372129791,1752532252609,-3466.55,0.00024383,3]
[372129792,1752532252619,-840.62,0.00024383,3]
[372129793,1752532252629,-476.17,0.00024383,3]
[372129794,1752532252638,-2617.13,0.00024383,3]
[372129795,1752532252648,-460.0,0.00024383,3]
[372129796,1752532252658,-499.24,0.00024383,3]
[372129797,1752532252671,-460.0,0.00024383,3]
[372129798,1752532252680,-2264.69,0.00024383,3]
[372129799,1752532252690,-460.0,0.00024383,3]
[372129800,1752532252700,-703.76,0.00024383,3]
[372129801,1752532252710,-801.47,0.00024383,3]
[372129802,1752532252719,-537.34,0.00024383,3]
[372129803,1752532252729,-5277.36,0.00024383,3]
[372129805,1752532252911,-240.56,0.00024383,3]
[372129806,1752532252927,-585.2,0.00024383,3]
[372129807,1752532252937,-634.32,0.00024383,3]
[372129808,1752532252946,-979.14,0.00024383,3]
[372129809,1752532252955,-460.0,0.00024383,3]
[372129810,1752532252964,-593.07,0.00024383,3]
[372129811,1752532252973,-460.0,0.00024383,3]
[372129812,1752532252982,-460.0,0.00024383,3]
[372129813,1752532252991,-160.0,0.000244,7]
[372129814,1752532253001,-900.01,0.000244,7]
[372129815,1752532253010,-495.24451817,0.00024493,2]
[372129816,1752532253021,-151.0,0.000245,9]
[372129817,1752532253031,-302.0,0.000245,30]
[372129818,1752532253040,-200.0,0.000245,2]
[372129819,1752532253049,-1418.9076181,0.00024521,11]
[372129820,1752532253058,-151.300379,0.00024558,7]
[372129821,1752532253068,-151.0,0.00024558,7]
[372129822,1752532253078,-648.53469135,0.00024598,2]
[372129823,1752532253087,-495.24451817,0.00024615,2]
[372129824,1752532253097,-150000.0,0.00024617,2]
[372129825,1752532253107,-174606.61987979,0.0002465,2]
[372129826,1752532253126,-118638.75404089,0.0002465,2]
[372129827,1752532253142,-460.0,0.00022191,3]
[372129828,1752532253151,-541.64666871,0.0002465,2]
[372129829,1752532253362,-518.93788665,0.00021917,3]
[372129830,1752532253372,-204.40483807,0.00022465,3]
[372129832,1752532274238,740.16654886,0.00020972,2]
[372129834,1752532399043,247.351553,0.00013699,2]
[372129854,1752533135126,-160.0,0.00018893,2]
[372129855,1752533135147,-180.0,0.00018908,2]
[372129856,1752533135167,-214.33456592,0.00018917,2]
[372129857,1752533135194,-160.0,0.00018917,2]
[372129858,1752533135214,-160.0,0.00018988,2]
[372129859,1752533135236,-160.0,0.00018988,2]
[372129860,1752533135256,-160.0,0.00018988,2]
[372129861,1752533135277,-160.0,0.00019011,2]
[372129862,1752533135297,-160.0,0.00019011,2]
[372129863,1752533135317,-815.95474261,0.00019011,2]
[372129864,1752533135337,-468.75,0.00019012,2]
[372129865,1752533135358,-300.0,0.00019109,2]
[372129866,1752533135379,-300.0,0.00019109,2]
[372129867,1752533135514,-1200.0,0.00019109,2]
[372129868,1752533135537,-50000.0,0.0001911,2]
[372129869,1752533135558,-284.91981695,0.00019111,2]
[372129870,1752533135580,-1200.0,0.00019175,2]
[372129871,1752533135603,-5000.0,0.00019178,2]
[372129872,1752533135624,-5000.0,0.00019178,2]
[372129873,1752533135645,-5000.0,0.00019178,2]
[372129874,1752533135666,-2010.35104184,0.00019178,2]
[372129875,1752533135688,-666.0,0.00019178,2]
[372129876,1752533135710,-1919.00646345,0.00019362,2]
[372129877,1752533209083,-300.0,0.00019361,2]
[372129878,1752533209104,-8980.15151823,0.00019362,2]
[372129879,1752533228093,-300.0,0.00019361,2]
[372129880,1752533228113,-486.12084517,0.00019362,2]
[372129881,1752533233133,-6570.80350133,0.00019362,2]
[372129882,1752533243079,-40089.15974892,0.00019362,2]
[372129883,1752533243100,-468.75,0.00019362,2]
[372129884,1752533243121,-214.33456592,0.00019362,2]
[372129885,1752533243141,-160.0,0.00019362,2]
[372129886,1752533243161,-818.27,0.000194,2]
[372129887,1752533243182,-417.814892,0.00019725,2]
[372129888,1752533243203,-815.95474257,0.00019884,2]
[372129889,1752533243223,-53043.36850998,0.0001999,2]
[372129890,1752533247082,-160.0,0.00019362,2]
[372129891,1752533247103,-14266.38885069,0.0001999,2]
[372129892,1752533280745,1001.31,0.00014,10]
[372129895,1752533357123,-686.33276866,0.000189,2]
[372129896,1752533357144,-160.0,0.00019342,2]
[372129897,1752533357351,-300.0,0.00019989,2]
[372129898,1752533357394,-32690.24263933,0.0001999,2]
[372129899,1752533357437,-247.351553,0.00020187,2]
[372129900,1752533357480,-160.0,0.00020387,2]
[372129901,1752533357521,-838.70323114,0.00020387,2]
[372129902,1752533357563,-230.73061749,0.00020387,2]
[372129903,1752533357603,-237.51609166,0.00020527,2]
[372129904,1752533357644,-536.292,0.00020682,2]
[372129905,1752533357685,-5000.0,0.000207,2]
[372129906,1752533357727,-824.13565309,0.000207,2]
[372129907,1752533358180,-215.47013733,0.00020872,2]
[372129908,1752533358202,-12600.81778503,0.00020872,2]
[372129909,1752533358222,-525.46609069,0.00020872,2]
[372129910,1752533358243,-17660.36440595,0.00020872,3]
[372129911,1752533358264,-12600.81778503,0.00020872,3]
[372129912,1752533358284,-1129.91268219,0.00020899,2]
[372129913,1752533358308,-1621.03515814,0.000209,4]
[372129914,1752533358329,-1680.0,0.00020928,2]
[372129915,1752533358349,-6333.5,0.00020956,10]
[372129916,1752533358370,-9120.23,0.00020962,10]
[372129917,1752533358390,-7600.2,0.00020962,10]
[372129918,1752533358412,-55606.31155564,0.00020972,2]
[372129919,1752533388594,468.75,0.0001999,2]
[372129920,1752533394113,214.33456592,0.0001999,2]
[372129953,1752533432674,-1602.93209452,0.00020763,10]
[372129954,1752533432686,-942.35790548,0.00020763,10]
[372129955,1752533432696,-3974.05,0.00020763,10]
[372129956,1752533432706,-3311.7,0.00020763,10]
[372129957,1752533432714,-1200.0,0.00020772,2]
[372129958,1752533432723,-1662.16779267,0.00020773,2]
[372129959,1752533432735,-1052.9750217,0.00020773,2]
[372129960,1752533432746,-55393.44274557,0.00020773,2]
[372130032,1752533438208,-396.92425814,0.00020773,2]
[372130038,1752533438249,-12576.60189081,0.00020773,2]
[372130054,1752533438395,-745.10319183,0.00020773,2]
[372130056,1752533438407,-36450.59863692,0.00020773,2]
[372130059,1752533438419,-26306.67454919,0.00020773,2]
[372130061,1752533438428,-300.0,0.00020872,2]
[372130063,1752533438437,-160.0,0.00020872,3]
[372130065,1752533438447,-16623.59042761,0.00020873,2]
[372130067,1752533438456,-611.96605698,0.00020873,2]
[372130069,1752533438465,-1567.00065283,0.000209,4]
[372130071,1752533438474,-5277.91,0.00020962,10]
[372130073,1752533438485,-155.0,0.00020972,2]
[372130075,1752533438494,-313653.5218955,0.00020972,2]
[372130077,1752533438504,-500.0,0.00020973,2]
[372130079,1752533438513,-500.0,0.00020973,2]
[372130081,1752533438522,-500.0,0.00020973,2]
[372130083,1752533438531,-500.0,0.00020973,2]
[372130085,1752533438541,-500.0,0.00020973,2]
[372130087,1752533438550,-500.0,0.00020973,2]
[372130089,1752533438559,-500.0,0.00020973,2]
[372130091,1752533438569,-500.0,0.00020973,2]
[372130093,1752533438578,-500.0,0.00020973,2]
[372130095,1752533438587,-500.0,0.00020973,2]
[372130097,1752533438596,-500.0,0.00020973,2]
[372130099,1752533438606,-500.84883031,0.00020973,2]
[372130101,1752533438615,-3206.54,0.00021,2]
[372130103,1752533438624,-30640.58,0.00021,2]
[372130105,1752533438634,-736.44,0.00021,2]
[372130107,1752533438643,-1567.00065283,0.00021072,4]
[372130109,1752533438653,-160.0,0.000212,3]
[372130111,1752533438662,-1567.00065283,0.00021245,4]
[372130113,1752533438672,-500.0,0.00021352,2]
[372130115,1752533438681,-1567.00065283,0.00021417,5]
[372130117,1752533438691,-312.0,0.00021432,2]
[372130119,1752533438700,-611.96605692,0.0002148,2]
[372130121,1752533438710,-151.0,0.000215,4]
[372130123,1752533438719,-155.0,0.0002152,2]
[372130125,1752533438729,-500.0,0.00021521,2]
[372130127,1752533438739,-1000.0,0.00021521,2]
[372130129,1752533438748,-500.0,0.00021521,2]
[372130131,1752533438758,-1000.0,0.00021521,2]
[372130133,1752533438767,-301.0,0.00021521,2]
[372130135,1752533438776,-1000.0,0.00021521,2]
[372130137,1752533438786,-500.0,0.00021521,2]
[372130139,1752533438796,-1567.00065283,0.0002159,5]
[372130141,1752533438805,-151.0,0.000216,3]
[372130143,1752533438815,-1567.00065283,0.00021762,5]
[372130145,1752533438825,-151.0,0.000218,3]
[372130147,1752533438834,-151.0,0.000219,4]
[372130149,1752533438844,-647.0,0.00021909,2]
[372130151,1752533438854,-2154.0,0.00021909,2]
[372130153,1752533438863,-407.0,0.00021909,2]
[372130155,1752533438872,-968.0,0.00021909,2]
[372130157,1752533438883,-150.0,0.00021909,2]
[372130159,1752533438892,-500.0,0.00021916,2]
[372130161,1752533438903,-629.46008031,0.00021916,2]
[372130163,1752533438912,-500.0,0.00021916,2]
[372130165,1752533438922,-500.0,0.00021916,2]
[372130167,1752533438933,-500.0,0.00021916,2]
[372130169,1752533438942,-500.0,0.00021916,2]
[372130171,1752533438952,-500.0,0.00021916,2]
[372130173,1752533438961,-500.0,0.00021916,2]
[372130175,1752533438971,-500.0,0.00021916,2]
[372130177,1752533438981,-500.0,0.00021916,2]
[372130179,1752533438991,-500.0,0.00021916,2]
[372130181,1752533439001,-500.0,0.00021916,2]
[372130183,1752533439014,-500.0,0.00021916,2]
[372130185,1752533439023,-500.0,0.00021916,2]
[372130187,1752533439033,-500.0,0.00021916,2]
[372130189,1752533439043,-500.0,0.00021916,2]
[372130191,1752533439053,-397.28794352,0.00021916,2]
[372130193,1752533439062,-496.43246077,0.00021916,2]
[372130195,1752533439073,-500.0,0.00021916,2]
[372130197,1752533439083,-500.0,0.00021916,2]
[372130199,1752533439093,-500.0,0.00021916,2]
[372130201,1752533439103,-500.0,0.00021916,2]
[372130203,1752533439113,-500.0,0.00021916,2]
[372130205,1752533439123,-500.0,0.00021916,2]
[372130207,1752533439132,-500.0,0.00021916,2]
[372130209,1752533439142,-500.0,0.00021916,2]
[372130211,1752533439151,-500.0,0.00021916,2]
[372130213,1752533439161,-500.0,0.00021916,2]
[372130215,1752533439171,-350.0,0.00021916,2]
[372130217,1752533439180,-500.0,0.00021916,2]
[372130219,1752533439190,-500.0,0.00021916,2]
[372130221,1752533439200,-500.0,0.00021916,2]
[372130223,1752533439210,-233.35332965,0.00021916,2]
[372130225,1752533439219,-500.0,0.00021916,2]
[372130227,1752533439229,-500.0,0.00021916,2]
[372130230,1752533439238,-500.0,0.00021916,2]
[372130232,1752533439248,-284.46368725,0.00021916,2]
[372130233,1752533439257,-192.5948144,0.00021916,2]
[372130235,1752533439266,-500.0,0.00021916,2]
[372130238,1752533439276,-500.0,0.00021916,2]
[372130240,1752533439285,-500.0,0.00021916,2]
[372130241,1752533439294,-500.0,0.00021916,2]
[372130243,1752533439304,-500.0,0.00021916,2]
[372130246,1752533439315,-500.0,0.00021916,2]
[372130248,1752533439324,-500.0,0.00021916,2]
[372130250,1752533439333,-500.0,0.00021916,2]
[372130252,1752533439342,-500.0,0.00021916,2]
[372130254,1752533439351,-449.88208721,0.00021916,2]
[372130256,1752533439360,-500.0,0.00021916,2]
[372130258,1752533439369,-500.0,0.00021916,2]
[372130260,1752533439379,-500.0,0.00021916,2]
[372130262,1752533439389,-500.0,0.00021916,2]
[372130264,1752533439399,-500.0,0.00021916,2]
[372130266,1752533439408,-500.0,0.00021916,2]
[372130267,1752533439417,-500.0,0.00021916,2]
[372130270,1752533439427,-500.0,0.00021916,2]
[372130272,1752533439437,-500.0,0.00021916,2]
[372130273,1752533439448,-500.0,0.00021916,2]
[372130276,1752533439457,-500.0,0.00021916,2]
[372130278,1752533439467,-500.0,0.00021916,2]
[372130279,1752533439477,-500.0,0.00021916,2]
[372130282,1752533439487,-311.46670265,0.00021916,2]
[372130283,1752533439497,-500.0,0.00021916,2]
[372130285,1752533439506,-500.0,0.00021916,2]
[372130287,1752533439518,-500.0,0.00021916,2]
[372130290,1752533439528,-500.0,0.00021916,2]
[372130292,1752533439539,-499.99999999,0.00021916,2]
[372130293,1752533439549,-460.0,0.00021917,3]
[372130296,1752533439558,-460.0,0.00021917,3]
[372130298,1752533439568,-460.0,0.00021917,3]
[372130301,1752533439578,-460.0,0.00021917,3]
[372130304,1752533439588,-572.02,0.00021917,3]
[372130306,1752533439598,-460.0,0.00021917,3]
[372130308,1752533439607,-460.0,0.00021917,3]
[372130310,1752533439617,-460.0,0.00021917,3]
[372130312,1752533439627,-460.0,0.00021917,3]
[372130314,1752533439637,-460.0,0.00021917,3]
[372130316,1752533439647,-460.0,0.00021917,3]
[372130318,1752533439657,-460.0,0.00021917,3]
[372130320,1752533439667,-460.0,0.00021917,3]
[372130322,1752533439676,-460.0,0.00021917,3]
[372130324,1752533439686,-460.0,0.00021917,3]
[372130326,1752533439696,-460.0,0.00021917,3]
[372130328,1752533439705,-201.14919503,0.00021917,3]
[372130330,1752533439715,-460.0,0.00021917,3]
[372130332,1752533439725,-462.43994195,0.00021917,3]
[372130333,1752533439735,-460.0,0.00021917,3]
[372130335,1752533439747,-460.0,0.00021917,3]
[372130337,1752533439756,-460.0,0.00021917,3]
[372130339,1752533439766,-460.0,0.00021917,3]
[372130341,1752533439776,-460.0,0.00021917,3]
[372130344,1752533439787,-201.39680186,0.00021917,3]
[372130346,1752533439796,-466.93304635,0.00021917,3]
[372130347,1752533439806,-460.0,0.00021917,3]
[372130350,1752533439816,-1000.0,0.00021917,3]
[372130351,1752533439827,-388.4192938,0.00021917,3]
[372130353,1752533439837,-460.0,0.00021917,3]
[372130356,1752533439847,-460.0,0.00021917,3]
[372130358,1752533439857,-460.0,0.00021917,3]
[372130360,1752533439866,-460.0,0.00021917,3]
[372130361,1752533439876,-460.0,0.00021917,3]
[372130364,1752533439886,-460.0,0.00021917,3]
[372130366,1752533439896,-460.0,0.00021917,3]
[372130367,1752533439906,-460.0,0.00021917,3]
[372130370,1752533439915,-460.0,0.00021917,3]
[372130371,1752533439925,-460.0,0.00021917,3]
[372130373,1752533439935,-460.0,0.00021917,3]
[372130375,1752533439945,-460.0,0.00021917,3]
[372130377,1752533439955,-460.0,0.00021917,3]
[372130379,1752533439966,-464.72862013,0.00021917,3]
[372130381,1752533439976,-181.6122221,0.00021917,3]
[372130383,1752533439987,-460.0,0.00021917,3]
[372130385,1752533439997,-460.0,0.00021917,3]
[372130388,1752533440011,-203.09,0.00021917,3]
[372130389,1752533440021,-460.0,0.00021917,3]
[372130392,1752533440031,-574.45117471,0.00021917,3]
[372130393,1752533440041,-460.0,0.00021917,3]
[372130395,1752533440051,-460.0,0.00021917,3]
[372130397,1752533440060,-460.0,0.00021917,3]
[372130399,1752533440069,-460.0,0.00021917,3]
[372130400,1752533440080,-460.0,0.00021917,3]
[372130401,1752533440090,-460.0,0.00021917,3]
[372130402,1752533440099,-460.0,0.00021917,3]
[372130403,1752533440109,-460.0,0.00021917,3]
[372130404,1752533440118,-460.0,0.00021917,3]
[372130405,1752533440128,-460.0,0.00021917,3]
[372130406,1752533440138,-460.0,0.00021917,3]
[372130407,1752533440147,-460.0,0.00021917,3]
[372130408,1752533440157,-460.0,0.00021917,3]
[372130409,1752533440166,-460.0,0.00021917,3]
[372130410,1752533440176,-460.0,0.00021917,3]
[372130411,1752533440333,-460.0,0.00021917,3]
[372130412,1752533440342,-460.0,0.00021917,3]
[372130413,1752533440352,-460.0,0.00021917,3]
[372130415,1752533440362,-604.15,0.00021917,3]
[372130417,1752533440372,-460.0,0.00021917,3]
[372130419,1752533440381,-460.0,0.00021917,3]
[372130421,1752533440391,-460.0,0.00021917,3]
[372130423,1752533440401,-460.0,0.00021917,3]
[372130425,1752533440410,-460.0,0.00021917,3]
[372130427,1752533440420,-460.0,0.00021917,3]
[372130429,1752533440430,-366.48812711,0.00021917,3]
[372130431,1752533440440,-460.0,0.00021917,3]
[372130433,1752533440449,-460.0,0.00021917,3]
[372130435,1752533440459,-460.0,0.00021917,3]
[372130437,1752533440469,-460.0,0.00021917,3]
[372130439,1752533440478,-460.0,0.00021917,3]
[372130441,1752533440489,-460.0,0.00021917,3]
[372130443,1752533440498,-460.0,0.00021917,3]
[372130445,1752533440508,-500.00000001,0.00021917,3]
[372130447,1752533440519,-460.0,0.00021917,3]
[372130450,1752533440529,-460.0,0.00021917,3]
[372130452,1752533440538,-460.0,0.00021917,3]
[372130453,1752533440548,-460.0,0.00021917,3]
[372130455,1752533440559,-460.0,0.00021917,3]
[372130458,1752533440569,-460.0,0.00021917,3]
[372130460,1752533440579,-460.0,0.00021917,3]
[372130462,1752533440589,-460.0,0.00021917,3]
[372130464,1752533440598,-460.0,0.00021917,3]
[372130466,1752533440608,-460.0,0.00021917,3]
[372130468,1752533440617,-360.44300163,0.00021917,3]
[372130470,1752533440627,-460.0,0.00021917,3]
[372130472,1752533440637,-460.0,0.00021917,3]
[372130474,1752533440646,-460.0,0.00021917,3]
[372130476,1752533440656,-188.73501387,0.00021917,3]
[372130478,1752533440665,-460.0,0.00021917,3]
[372130480,1752533440675,-460.0,0.00021917,3]
[372130482,1752533440684,-460.0,0.00021917,3]
[372130484,1752533440694,-460.0,0.00021917,3]
[372130486,1752533440703,-460.0,0.00021917,3]
[372130487,1752533440712,-751.61,0.00021917,3]
[372130489,1752533440722,-460.0,0.00021917,3]
[372130491,1752533440731,-460.0,0.00021917,3]
[372130493,1752533440742,-460.0,0.00021917,3]
[372130495,1752533440751,-460.0,0.00021917,3]
[372130497,1752533440761,-460.0,0.00021917,3]
[372130499,1752533440770,-460.0,0.00021917,3]
[372130501,1752533440780,-460.0,0.00021917,3]
[372130503,1752533440790,-460.0,0.00021917,3]
[372130505,1752533440799,-460.0,0.00021917,3]
[372130507,1752533440809,-587.13,0.00021917,3]
[372130509,1752533440819,-460.0,0.00021917,3]
[372130511,1752533440828,-460.0,0.00021917,3]
[372130513,1752533440838,-831.11,0.00021917,3]
[372130515,1752533440847,-460.0,0.00021917,3]
[372130517,1752533440857,-832.44,0.00021917,3]
[372130519,1752533440870,-460.0,0.00021917,3]
[372130522,1752533440880,-460.0,0.00021917,3]
[372130523,1752533440889,-460.0,0.00021917,3]
[372130525,1752533440899,-460.0,0.00021917,3]
[372130527,1752533440909,-460.0,0.00021917,3]
[372130530,1752533440918,-803.81,0.00021917,3]
[372130532,1752533440928,-460.0,0.00021917,3]
[372130534,1752533440938,-460.0,0.00021917,3]
[372130536,1752533440948,-460.0,0.00021917,3]
[372130538,1752533440960,-460.0,0.00021917,3]
[372130540,1752533440969,-460.0,0.00021917,3]
[372130542,1752533440979,-460.0,0.00021917,3]
[372130544,1752533440990,-460.0,0.00021917,3]
[372130546,1752533441004,-462.00347276,0.00021917,3]
[372130548,1752533441013,-460.0,0.00021917,3]
[372130550,1752533441023,-460.0,0.00021917,3]
[372130551,1752533441033,-460.0,0.00021917,3]
[372130553,1752533441044,-551.04067024,0.00021917,3]
[372130555,1752533441054,-460.0,0.00021917,3]
[372130558,1752533441064,-460.0,0.00021917,3]
[372130559,1752533441073,-460.0,0.00021917,3]
[372130562,1752533441085,-314.45881185,0.00021917,3]
[372130563,1752533441095,-460.0,0.00021917,3]
[372130565,1752533441104,-460.0,0.00021917,3]
[372130568,1752533441114,-430.61754367,0.00021917,3]
[372130569,1752533441124,-460.0,0.00021917,3]
[372130571,1752533441134,-460.0,0.00021917,3]
[372130574,1752533441145,-460.0,0.00021917,3]
[372130576,1752533441155,-654.99,0.00021917,3]
[372130577,1752533441165,-460.0,0.00021917,3]
[372130579,1752533441175,-460.0,0.00021917,3]
[372130582,1752533441185,-380.96064391,0.00021917,3]
[372130584,1752533441195,-570.2,0.00021917,3]
[372130586,1752533441206,-460.0,0.00021917,3]
[372130588,1752533441215,-460.0,0.00021917,3]
[372130589,1752533441225,-460.0,0.00021917,3]
[372130591,1752533441235,-460.0,0.00021917,3]
[372130593,1752533441245,-460.0,0.00021917,3]
[372130595,1752533441255,-460.0,0.00021917,3]
[372130597,1752533441264,-460.0,0.00021917,3]
[372130599,1752533441274,-460.0,0.00021917,3]
[372130601,1752533441283,-460.0,0.00021917,3]
[372130603,1752533441293,-460.0,0.00021917,3]
[372130605,1752533441302,-460.0,0.00021917,3]
[372130607,1752533441311,-460.0,0.00021917,3]
[372130609,1752533441322,-460.0,0.00021917,3]
[372130611,1752533441332,-460.0,0.00021917,3]
[372130613,1752533441343,-460.0,0.00021917,3]
[372130615,1752533441352,-460.0,0.00021917,3]
[372130617,1752533441362,-460.0,0.00021917,3]
[372130619,1752533441371,-460.0,0.00021917,3]
[372130621,1752533441380,-460.0,0.00021917,3]
[372130623,1752533441389,-460.0,0.00021917,2]
[372130625,1752533441398,-460.0,0.00021917,3]
[372130627,1752533441408,-460.0,0.00021917,3]
[372130629,1752533441418,-460.0,0.00021917,3]
[372130631,1752533441427,-3242.26,0.00021917,3]
[372130633,1752533441437,-460.0,0.00021917,3]
[372130635,1752533441446,-460.0,0.00021917,3]
[372130637,1752533441456,-460.0,0.00021917,3]
[372130639,1752533441466,-460.0,0.00021917,3]
[372130641,1752533441476,-460.0,0.00021917,3]
[372130643,1752533441486,-460.0,0.00021917,3]
[372130645,1752533441496,-460.0,0.00021917,3]
[372130647,1752533441506,-460.0,0.00021917,3]
[372130649,1752533441516,-461.72,0.00021917,3]
[372130651,1752533441527,-460.0,0.00021917,3]
[372130653,1752533441537,-460.0,0.00021917,3]
[372130655,1752533441547,-605.83,0.00021917,3]
[372130657,1752533441557,-1100.96,0.00021917,3]
[372130659,1752533441567,-460.0,0.00021917,3]
[372130661,1752533441577,-460.0,0.00021917,3]
[372130663,1752533441587,-252.99633849,0.00021917,3]
[372130665,1752533441598,-757.64,0.00021917,3]
[372130667,1752533441607,-460.0,0.00021917,3]
[372130669,1752533441617,-460.0,0.00021917,3]
[372130671,1752533441626,-460.0,0.00021917,3]
[372130673,1752533441636,-460.0,0.00021917,3]
[372130675,1752533441645,-460.0,0.00021917,3]